bitfinex-derivatives/quotes_ETHF0:USTF0_20230403
["timestamp","ask_amount","ask_price","bid_price","bid_amount"]
[1680520836635,3.2078,1805.4,1805.3,1.659]
[1680520838038,3.2078,1805.4,1805.3,2.10969]
[1680520840835,3.2078,1805.6,1805.3,2.10969]
[1680520841032,3.2078,1805.6,1805.4,0.831]
[1680520841231,3.2078,1805.6,1805.5,0.44608056]
[1680520841432,3.32230264,1805.6,1805.5,0.44608056]
[1680520845731,3.2078,1805.6,1805.5,0.44608056]
[1680520846039,3.2078,1805.6,1805.5,1.27708056]
[1680520849951,3.2078,1805.6,1805.5,2.10308056]
[1680520851751,1.69149144,1805.8,1805.5,2.10308056]
[1680520851941,0.11449657,1805.7,1805.6,0.826]
[1680520852543,1.44139596,1805.7,1805.6,0.826]
[1680520853146,1.55589245,1805.7,1805.6,0.826]
[1680520854746,1.44139596,1805.7,1805.6,0.826]
[1680520855254,1.44139596,1805.8,1805.6,0.826]
[1680520855441,1.5558895,1805.8,1805.6,0.826]
[1680520855847,1.5558895,1805.8,1805.7,0.4813334]
[1680520857843,1.55588723,1805.8,1805.7,0.4813334]
[1680520858448,1.44139596,1805.8,1805.7,0.4813334]
[1680520862056,1.44139596,1805.8,1805.7,1.3123334]
[1680520868766,1.55588625,1805.8,1805.7,1.3123334]
[1680520868969,1.44139596,1805.8,1805.7,1.3123334]
[1680520870175,2.44139596,1805.8,1805.7,1.3123334]
[1680520870364,2.55588644,1805.8,1805.7,0.4813334]
[1680520870772,1.55588644,1805.8,1805.7,0.4813334]
[1680520874268,2.55588644,1805.8,1805.7,0.4813334]
[1680520874468,1.55588644,1805.8,1805.7,0.4813334]
[1680520875077,2.55588644,1805.8,1805.7,0.4813334]
[1680520875278,1.55588644,1805.8,1805.7,0.4813334]
[1680520878380,0.11449048,1805.8,1805.7,0.4813334]
[1680520883780,1.0,1805.7,1805.3,1.97902689]
[1680520883979,0.86618392,1805.4,1805.3,1.97902689]
[1680520885882,0.86618392,1805.4,1805.3,2.29654874]
[1680520887381,1.1549119,1805.5,1805.3,2.29654874]
[1680520887684,0.86650914,1805.4,1805.3,2.29654874]
[1680520889577,1.1549119,1805.5,1805.3,2.29654874]
[1680520890082,0.8665737,1805.4,1805.3,2.29654874]
[1680520890283,1.1549119,1805.5,1805.3,2.29654874]
[1680520890881,0.86665069,1805.4,1805.3,3.16832182]
[1680520891082,1.1549119,1805.5,1805.3,2.29654874]
[1680520891980,1.1549119,1805.4,1805.3,1.46554874]
[1680520892280,1.1549119,1805.4,1805.3,2.29654874]
[1680520893473,1.1549119,1805.5,1805.3,3.16832182]
[1680520893684,1.1549119,1805.5,1805.4,0.58118205]
[1680520893876,1.1549119,1805.5,1805.4,1.0]
[1680520894278,1.44363987,1805.6,1805.3,3.16832182]
[1680520894482,1.15577987,1805.4,1805.3,3.16832182]
[1680520896289,1.15577987,1805.4,1805.3,2.58713977]
[1680520896890,1.15577987,1805.4,1805.3,3.16829837]
[1680520897490,1.15577987,1805.5,1805.3,2.58713977]
[1680520897691,1.15577987,1805.5,1805.4,0.58114984]
[1680520897888,1.15577987,1805.5,1805.4,1.58114984]
[1680520898192,1.15577987,1805.5,1805.4,0.58114984]
[1680520898384,1.15577987,1805.5,1805.4,2.40914984]
[1680520898691,1.55813679,1805.6,1805.4,2.40914984]
[1680520898692,1.15577987,1805.6,1805.5,0.831]
[1680520898992,1.15572856,1805.6,1805.5,3.24311408]
[1680520899192,1.44363987,1805.7,1805.5,3.24311408]
[1680520899392,1.55812914,1805.7,1805.6,0.83]
[1680520900090,1.44363987,1805.7,1805.6,0.83]
[1680520900897,1.44363987,1805.7,1805.6,1.14759363]
[1680520906294,0.11448927,1805.7,1805.6,1.14759363]
[1680520906599,1.44445987,1805.7,1805.6,1.14759363]
[1680520906794,1.55868497,1805.7,1805.6,1.14759363]
[1680520907289,0.11448927,1805.7,1805.6,1.14759363]
[1680520907994,1.44407704,1805.7,1805.6,1.14759363]
[1680520908182,1.55856631,1805.7,1805.6,1.14759363]
[1680520909394,0.11448927,1805.7,1805.6,1.14759363]
[1680520909592,1.44392808,1805.7,1805.6,1.14759363]
[1680520910095,1.55841735,1805.7,1805.6,1.14759363]
[1680520910296,1.44392808,1805.7,1805.6,1.14759363]
[1680520911887,1.44392808,1805.7,1805.6,2.14759363]
[1680520912289,1.44392808,1805.7,1805.6,1.14759363]
[1680520913097,1.15517871,1805.7,1805.6,2.55970771]
[1680520913595,1.15517871,1805.7,1805.6,3.55970771]
[1680520916002,1.15517871,1805.8,1805.6,3.55970771]
[1680520916194,0.86589256,1805.8,1805.7,7.28191408]
[1680520916391,1.15452987,1805.9,1805.7,8.15368716]
[1680520916701,1.15452987,1806.0,1805.8,7.31731207]
[1680520916894,1.15452987,1806.0,1805.9,2.24271925]
[1680520917091,1.70359908,1806.1,1805.9,3.24271925]
[1680520917297,1.70359908,1806.1,1806.0,0.828]
[1680520917502,1.15452987,1806.2,1806.0,1.828]
[1680520917690,1.15452987,1806.2,1806.1,0.826]
[1680520919501,1.69828594,1806.2,1806.1,0.826]
[1680520920300,0.54375607,1806.2,1806.1,0.826]
[1680520920495,4.36232987,1806.3,1806.1,0.826]
[1680520920692,4.36232987,1806.3,1806.2,0.831]
[1680520922007,4.36232987,1806.3,1806.2,0.828]
[1680520922602,4.65172808,1806.3,1806.0,0.831]
[1680520922906,1.15258599,1806.2,1806.0,0.831]
[1680520924108,0.5760521,1806.1,1806.0,0.831]
[1680520926514,0.5760521,1806.2,1806.0,0.831]
[1680520929307,0.5760521,1806.2,1806.1,0.831]
[1680520930702,0.5760521,1806.2,1806.1,1.40094379]
[1680520935916,1.1315476,1806.3,1806.1,2.22694379]
[1680520936108,0.5760521,1806.3,1806.2,1.657]
[1680520936308,1.64439736,1806.4,1806.2,1.657]
[1680520936309,0.5760521,1806.4,1806.2,1.657]
[1680520936503,0.5760521,1806.4,1806.3,0.831]
[1680520945827,0.5760521,1806.4,1806.3,1.40102572]
[1680520946530,0.5760521,1806.5,1806.3,1.40102572]
[1680520946727,0.5760521,1806.5,1806.4,1.662]
[1680520950534,3.7838521,1806.5,1806.4,1.662]
[1680520951236,3.78294349,1806.5,1806.4,1.662]
[1680520951538,3.2078,1806.5,1806.4,0.831]
[1680520952129,3.2078,1806.5,1806.3,1.40102572]
[1680520952130,4.2078,1806.5,1806.3,1.40102572]
[1680520952341,0.57520937,1806.4,1806.3,1.40102572]
[1680520952536,1.57520937,1806.4,1806.3,1.40102572]
[1680520952733,0.57520937,1806.4,1806.3,1.40102572]
[1680520953134,4.2078,1806.5,1806.3,1.40102572]
[1680520953135,5.36038599,1806.5,1806.3,1.40102572]
[1680520953633,4.36038599,1806.5,1806.3,1.40102572]
[1680520957243,1.15258599,1806.4,1806.3,1.40102572]
[1680520960943,1.15258599,1806.4,1806.3,1.56193542]
[1680520961144,1.44392808,1806.4,1806.3,1.56193542]
[1680520962034,4.65172808,1806.5,1806.3,1.56193542]
[1680520962943,1.44392808,1806.4,1806.3,1.56193542]
[1680520963340,4.65172808,1806.5,1806.3,1.56193542]
[1680520963844,1.44392808,1806.4,1806.3,1.56193542]
[1680520964144,4.65172808,1806.5,1806.3,1.56193542]
[1680520965044,1.44392808,1806.4,1806.3,1.56193542]
[1680520965446,4.65172808,1806.5,1806.3,1.56193542]
[1680520965645,1.44392808,1806.4,1806.3,1.56193542]
[1680520965945,3.2078,1806.5,1806.3,1.56193542]
[1680520965946,4.65172808,1806.5,1806.3,1.56193542]
[1680520966136,1.44392808,1806.4,1806.3,1.56193542]
[1680520966339,1.15319479,1806.4,1806.3,1.56193542]
[1680520966644,1.44392808,1806.5,1806.3,1.56193542]
[1680520966845,1.44392808,1806.4,1806.3,1.56193542]
[1680520967440,1.44392808,1806.4,1806.3,0.73093542]
[1680520968446,2.44392808,1806.4,1806.3,0.73093542]
[1680520968947,1.44392808,1806.4,1806.3,0.73093542]
[1680520969946,1.11444995,1806.4,1806.3,0.73093542]
[1680520970142,1.11444995,1806.4,1806.2,0.831]
[1680520970344,4.64945021,1806.3,1806.2,0.831]
[1680520973045,1.825,1806.5,1806.2,0.831]
[1680520973046,1.44165021,1806.4,1806.2,0.831]
[1680520973247,1.44165021,1806.3,1806.2,0.831]
[1680520975651,1.44165021,1806.3,1806.2,1.35493118]
[1680520981468,4.64945021,1806.3,1806.2,1.35493118]
[1680520981756,4.76390182,1806.3,1806.2,1.35493118]
[1680520982151,4.76390182,1806.3,1806.2,0.52393118]
[1680520982357,4.76390182,1806.3,1806.1,0.831]
[1680520982557,1.1543663,1806.2,1806.1,0.831]
[1680520990761,1.1543663,1806.2,1806.1,1.35686587]
[1680520992159,1.1543663,1806.2,1806.1,1.35586587]
[1680520992764,4.64945021,1806.3,1806.1,1.35586587]
[1680520992964,1.15433745,1806.2,1806.1,1.35586587]
[1680520993165,4.64945021,1806.3,1806.1,1.35586587]
[1680520994164,1.15430368,1806.2,1806.1,1.35586587]
[1680520996463,4.64945021,1806.3,1806.1,1.35586587]
[1680520998760,1.44165021,1806.2,1806.1,1.35586587]
[1680520999066,2.44165021,1806.2,1806.1,0.52586587]
[1680520999264,1.44165021,1806.2,1806.1,0.52586587]
[1680521001965,4.64945021,1806.3,1806.1,0.52586587]
[1680521002267,1.44165021,1806.2,1806.1,0.52586587]
[1680521002467,2.44165021,1806.2,1806.1,0.52586587]
[1680521002769,1.44165021,1806.2,1806.1,0.52586587]
[1680521006063,1.93946383,1806.2,1805.8,1.45249233]
[1680521006264,4.07352162,1805.9,1805.8,0.58071925]
[1680521006468,4.07352162,1805.9,1805.8,1.45249233]
[1680521006768,4.07352162,1805.9,1805.8,0.58071925]
[1680521006958,4.07352162,1805.9,1805.8,1.45249233]
[1680521007157,4.07352162,1805.9,1805.8,0.58071925]
[1680521007461,0.86572162,1805.9,1805.8,0.58075103]
[1680521007660,0.86572162,1805.9,1805.8,1.58075103]
[1680521008069,4.07352162,1805.9,1805.8,1.58075103]
[1680521008261,4.07352162,1805.9,1805.8,0.58075103]
[1680521008467,4.07352162,1805.9,1805.8,1.58075103]
[1680521008766,4.07352162,1805.9,1805.8,0.58075103]
[1680521010471,3.2078,1805.9,1805.8,0.58075103]
[1680521010864,4.0730608,1805.9,1805.8,0.58075103]
[1680521011364,3.2078,1805.9,1805.8,0.58075103]
[1680521011566,4.07289427,1805.9,1805.8,0.58075103]
[1680521013368,0.86509427,1805.9,1805.8,0.58075103]
[1680521013672,0.86509427,1805.9,1805.8,0.81699799]
[1680521014874,0.86509878,1805.9,1805.8,0.81699799]
[1680521017675,4.07289878,1805.9,1805.8,0.23624696]
[1680521019576,4.07289878,1805.9,1805.8,0.81699799]
[1680521022772,0.86509878,1805.9,1805.8,0.81699799]
[1680521025378,0.86509878,1805.9,1805.8,0.23624696]
[1680521025587,0.86509878,1805.9,1805.8,0.81699799]
[1680521025787,0.86509878,1805.9,1805.8,0.23624696]
[1680521026084,0.86509878,1805.9,1805.8,0.81699799]
[1680521026583,0.86509878,1805.9,1805.8,0.23624696]
[1680521028990,0.86509878,1805.9,1805.8,0.81699799]
[1680521029485,0.86509878,1805.9,1805.8,0.23624696]
[1680521029691,0.86509878,1805.9,1805.8,0.81699799]
[1680521035603,1.15429549,1806.0,1805.8,0.23624696]
[1680521036002,1.15429549,1805.9,1805.8,0.23624696]
[1680521036297,1.15429549,1806.0,1805.8,0.23624696]
[1680521036886,1.15429549,1805.9,1805.8,0.23624696]
[1680521037092,1.15429549,1806.0,1805.8,0.23624696]
[1680521037401,1.15429549,1805.9,1805.8,0.23624696]
[1680521037605,1.15429549,1806.0,1805.8,0.23624696]
[1680521037795,1.15429549,1805.9,1805.8,0.23624696]
[1680521038196,1.15429549,1806.0,1805.8,0.23624696]
[1680521038896,1.15429549,1805.9,1805.8,0.23624696]
[1680521039097,2.15429549,1806.0,1805.8,0.23624696]
[1680521039404,1.15429549,1805.9,1805.8,0.23624696]
[1680521039599,2.15429549,1806.0,1805.8,0.23624696]
[1680521039792,1.15429549,1805.9,1805.8,0.23624696]
[1680521042907,4.36209549,1805.9,1805.8,0.23624696]
[1680521046013,4.36119645,1805.9,1805.8,0.23624696]
[1680521046414,4.36120065,1805.9,1805.8,0.23624696]
[1680521046713,4.36119804,1805.9,1805.8,0.23624696]
[1680521047414,4.36126125,1805.9,1805.8,0.23624696]
[1680521047612,4.36125886,1805.9,1805.8,0.23624696]
[1680521047815,3.2078,1805.9,1805.8,0.23624696]
[1680521048019,4.36126109,1805.9,1805.8,0.23624696]
[1680521048612,3.2078,1805.9,1805.8,0.23624696]
[1680521049212,4.36119876,1805.9,1805.8,0.23624696]
[1680521049514,3.2078,1805.9,1805.8,0.23624696]
[1680521049714,3.2078,1805.9,1805.8,0.13956133]
[1680521051513,5.59514812,1805.9,1805.6,0.87177308]
[1680521051710,4.3615504,1805.7,1805.6,0.58104453]
[1680521052111,5.1865504,1805.7,1805.6,0.58104453]
[1680521052419,1.44223557,1805.7,1805.6,0.831]
[1680521052808,1.44223557,1805.7,1805.6,1.831]
[1680521053210,0.57691025,1805.7,1805.6,2.9902098]
[1680521053421,1.44223557,1805.7,1805.6,1.831]
[1680521053716,0.86532532,1805.7,1805.6,2.70252334]
[1680521053909,0.86532532,1805.7,1805.6,1.831]
[1680521054109,0.57692733,1805.7,1805.6,2.9902098]
[1680521054313,1.44225265,1805.7,1805.6,1.831]
[1680521054710,1.44225567,1805.7,1805.6,1.831]
[1680521054911,1.44225324,1805.7,1805.6,1.831]
[1680521055115,0.86532532,1805.7,1805.6,2.70251129]
[1680521055322,1.4422467,1805.7,1805.6,1.831]
[1680521055513,0.86532532,1805.7,1805.6,1.831]
[1680521057116,1.44219855,1805.7,1805.6,1.831]
[1680521057315,0.86532532,1805.7,1805.6,1.831]
[1680521057519,1.44218508,1805.7,1805.6,1.831]
[1680521058524,1.44218508,1805.7,1805.5,2.9832098]
[1680521058725,0.86532532,1805.7,1805.6,0.87150417]
[1680521059128,4.07312532,1805.7,1805.6,0.87150417]
[1680521059326,4.07312532,1805.7,1805.6,0.99384335]
[1680521062020,0.86532532,1805.7,1805.6,0.99384335]
[1680521062721,4.07312532,1805.7,1805.6,0.99384335]
[1680521066627,0.86532532,1805.7,1805.6,0.99384335]
[1680521066836,4.07312532,1805.7,1805.6,0.99384335]
[1680521069831,1.44195458,1805.7,1805.6,0.99384335]
[1680521070033,0.86532532,1805.7,1805.6,0.99384335]
[1680521071934,1.4419606,1805.7,1805.6,0.99384335]
[1680521072937,0.86532532,1805.7,1805.6,0.99384335]
[1680521077440,0.86532532,1805.7,1805.6,0.12233918]
[1680521078946,0.86532532,1805.7,1805.6,0.99396821]
[1680521079452,0.86532532,1805.7,1805.6,0.12233918]
[1680521081541,0.86532532,1805.7,1805.6,1.28154898]
[1680521083850,4.07312532,1805.7,1805.6,0.12233918]
[1680521084552,4.07312532,1805.7,1805.6,1.28154898]
[1680521085852,4.07312532,1805.7,1805.6,0.12233918]
[1680521086453,3.2078,1805.7,1805.6,0.12233918]
[1680521087056,3.2078,1805.7,1805.6,0.99430597]
[1680521088049,4.07317806,1805.7,1805.6,0.99430597]
[1680521088262,4.07317806,1805.7,1805.6,0.12233918]
[1680521090858,3.2078,1805.7,1805.6,0.12233918]
[1680521091064,3.2078,1805.7,1805.6,0.99430903]
[1680521091261,3.2078,1805.7,1805.6,0.12233918]
[1680521091762,4.07318571,1805.7,1805.6,0.12233918]
[1680521094961,0.86538571,1805.7,1805.6,1.28154898]
[1680521118280,0.86538571,1805.7,1805.6,2.11254898]
[1680521119883,0.86597325,1805.7,1805.6,2.11254898]
[1680521132195,1.1537504,1805.8,1805.6,2.11254898]
[1680521132397,1.1537504,1805.8,1805.7,0.87204706]
[1680521132592,1.1537504,1805.8,1805.7,1.99476021]
[1680521132893,1.1537504,1805.8,1805.7,0.99476021]
[1680521139399,1.1537504,1805.8,1805.7,1.82576021]
[1680521141703,4.3615504,1805.8,1805.7,0.99476021]
[1680521141897,3.2078,1805.8,1805.7,0.99476021]
[1680521147205,4.36286756,1805.8,1805.7,0.99476021]
[1680521147605,3.2078,1805.8,1805.7,0.99476021]
[1680521147905,4.36286758,1805.8,1805.7,0.99476021]
[1680521148098,3.2078,1805.8,1805.7,0.99476021]
[1680521150407,3.2078,1805.8,1805.7,1.57614328]
[1680521151107,5.474988,1805.8,1805.7,0.70409622]
[1680521151303,5.58946791,1805.8,1805.7,0.70409622]
[1680521153098,5.474988,1805.8,1805.7,0.70409622]
[1680521154206,4.649988,1805.8,1805.7,0.70409622]
[1680521154599,1.442188,1805.9,1805.7,0.70409622]
[1680521154804,1.55666357,1805.9,1805.7,0.70409622]
[1680521155007,1.15550631,1805.8,1805.7,0.12271315]
[1680521155310,1.15550631,1805.8,1805.7,0.7039932]
[1680521155497,1.15549872,1805.8,1805.7,0.7039932]
[1680521162620,1.442188,1805.8,1805.7,0.7039932]
[1680521162913,4.649988,1805.8,1805.7,0.7039932]
[1680521177726,1.15554993,1805.8,1805.7,1.5339932]
[1680521179132,1.15554993,1805.8,1805.7,0.95271315]
[1680521179328,1.15554993,1805.8,1805.7,1.53393833]
[1680521179622,1.15554993,1805.8,1805.7,0.95271315]
[1680521180228,1.15554993,1805.8,1805.7,1.53393805]
[1680521187538,1.442188,1805.9,1805.7,1.53393805]
[1680521187739,1.5566644,1805.9,1805.7,1.53393805]
[1680521188234,3.2078,1805.8,1805.7,1.53393805]
[1680521188431,1.15571517,1805.8,1805.7,1.53393805]
[1680521188834,4.36351517,1805.8,1805.7,1.53393805]
[1680521189037,3.2078,1805.8,1805.7,1.53393805]
[1680521191436,4.649988,1805.8,1805.7,1.53393805]
[1680521192036,4.649988,1805.8,1805.7,0.70393805]
[1680521198343,15.85144122,1805.8,1805.3,1.44917968]
[1680521198540,1.15587993,1805.4,1805.1,2.27717968]
[1680521198741,0.57791612,1805.2,1805.1,2.27717968]
[1680521198947,0.57791612,1805.2,1805.1,2.96416626]
[1680521200148,1.57791612,1805.3,1805.1,0.828]
[1680521200651,0.22190237,1805.2,1805.1,0.828]
[1680521202247,0.22190237,1805.2,1805.0,4.0378]
[1680521204655,0.22190237,1805.2,1805.0,0.83]
[1680521205752,3.78571612,1805.3,1805.0,0.83]
[1680521205952,0.22187814,1805.1,1805.0,0.83]
[1680521206153,3.2078,1805.3,1805.0,1.51699174]
[1680521206354,3.2078,1805.3,1805.0,0.83]
[1680521206556,0.22187603,1805.2,1805.0,0.83]
[1680521207257,1.57791612,1805.3,1805.0,0.83]
[1680521207448,1.0,1805.3,1805.0,0.83]
[1680521207643,2.2757903,1805.4,1805.0,0.83]
[1680521207844,0.57791612,1805.3,1805.0,0.83]
[1680521208062,3.2078,1805.3,1805.0,0.83]
[1680521209862,1.40891612,1805.4,1805.0,0.83]
[1680521210959,1.40891612,1805.4,1805.0,4.0378]
[1680521211165,1.40891612,1805.4,1805.1,0.87012216]
[1680521211351,1.40891612,1805.4,1805.1,1.87012216]
[1680521212758,1.40891612,1805.4,1805.1,0.87012216]
[1680521212959,0.22184748,1805.3,1805.1,0.87012216]
[1680521213263,2.40891612,1805.4,1805.1,0.87012216]
[1680521219566,1.40891612,1805.4,1805.1,0.87012216]
[1680521222060,1.40891612,1805.4,1805.1,1.70112216]
[1680521228072,0.22178123,1805.3,1805.1,1.70112216]
[1680521228278,2.40891612,1805.4,1805.1,0.831]
[1680521228479,1.40891612,1805.4,1805.1,0.831]
[1680521228778,2.2757903,1805.4,1805.1,0.831]
[1680521229377,0.57791612,1805.3,1805.1,0.831]
[1680521229577,1.57791612,1805.3,1805.1,0.831]
[1680521229872,0.57791612,1805.3,1805.1,0.831]
[1680521230180,1.40891612,1805.4,1805.1,0.831]
[1680521230381,2.2757903,1805.4,1805.1,0.831]
[1680521230584,1.40891612,1805.4,1805.1,0.831]
[1680521230981,2.2757903,1805.4,1805.1,0.831]
[1680521231180,1.40891612,1805.4,1805.1,0.831]
[1680521231382,2.2757903,1805.4,1805.1,0.831]
[1680521231684,1.40891612,1805.4,1805.1,1.70112216]
[1680521231881,0.57791612,1805.3,1805.1,0.831]
[1680521232086,0.57791612,1805.3,1805.2,0.831]
[1680521232790,1.4447903,1805.4,1805.2,0.831]
[1680521233089,0.57791612,1805.3,1805.2,0.831]
[1680521233389,2.4447903,1805.4,1805.2,0.831]
[1680521233681,0.57791612,1805.3,1805.2,0.831]
[1680521234681,1.4447903,1805.4,1805.2,0.831]
[1680521235389,1.4447903,1805.4,1805.2,4.0388]
[1680521235890,1.4447903,1805.4,1805.2,0.831]
[1680521235891,0.57791612,1805.3,1805.2,0.831]
[1680521236884,0.57791612,1805.4,1805.2,4.90392216]
[1680521237088,1.14019692,1805.6,1805.3,2.52512216]
[1680521237292,0.57791612,1805.6,1805.5,4.0388]
[1680521239890,0.57791612,1805.6,1805.5,4.8698]
[1680521240496,0.57791612,1805.6,1805.5,0.831]
[1680521243094,0.57791612,1805.6,1805.5,1.09578387]
[1680521245092,0.57791612,1805.6,1805.5,4.30358387]
[1680521253296,0.57791612,1805.6,1805.5,1.09578387]
[1680521253592,1.4447903,1805.6,1805.5,1.09578387]
[1680521253795,0.86687418,1805.6,1805.5,1.09578387]
[1680521253988,1.44431641,1805.6,1805.5,1.09578387]
[1680521254193,0.57744223,1805.6,1805.5,1.09578387]
[1680521255299,0.57744223,1805.6,1805.5,0.26478387]
[1680521255697,1.69787418,1805.6,1805.5,0.26478387]
[1680521255894,5.19467993,1805.6,1805.2,0.87028651]
[1680521256201,0.57740351,1805.4,1805.2,0.87028651]
[1680521256400,1.57740351,1805.4,1805.2,0.87028651]
[1680521257001,0.57740351,1805.4,1805.2,0.87028651]
[1680521257502,1.57740351,1805.4,1805.2,0.87028651]
[1680521257998,1.57740351,1805.4,1805.3,0.12551098]
[1680521258495,2.44350878,1805.4,1805.3,0.12551098]
[1680521258695,1.86610527,1805.4,1805.1,4.90908651]
[1680521258897,0.57736975,1805.3,1805.1,4.90908651]
[1680521262007,0.57736975,1805.3,1805.1,4.07808651]
[1680521269912,0.57736975,1805.3,1805.1,0.87028651]
[1680521270108,0.57736975,1805.3,1805.0,1.70128651]
[1680521271808,0.57736975,1805.3,1805.1,1.0]
[1680521273015,0.57736975,1805.3,1805.2,0.05712767]
[1680521273317,0.57736975,1805.3,1805.1,1.0]
[1680521274106,0.57736975,1805.3,1805.0,2.69518634]
[1680521274315,0.57736975,1805.2,1805.0,0.82489983]
[1680521274510,0.57736975,1805.2,1805.0,1.82489983]
[1680521277910,0.57736975,1805.2,1805.0,0.82489983]
[1680521278812,0.57736975,1805.2,1804.9,0.87028651]
[1680521278813,0.831,1805.1,1804.9,0.87028651]
[1680521279116,4.96876572,1805.0,1804.6,0.87028651]
[1680521279307,0.831,1804.7,1804.5,0.87028651]
[1680521279512,0.831,1804.7,1804.3,1.70828651]
[1680521279513,3.2078,1804.6,1804.3,1.70828651]
[1680521279714,3.2078,1804.6,1804.3,0.838]
[1680521281710,1.831,1804.7,1804.3,0.838]
[1680521281906,0.831,1804.7,1804.3,0.838]
[1680521282107,0.825,1804.6,1804.2,2.70128651]
[1680521282308,1.825,1804.6,1804.2,1.70128651]
[1680521282512,0.825,1804.6,1804.2,2.70128651]
[1680521282806,0.825,1804.6,1804.2,1.70128651]
[1680521283414,0.825,1804.6,1804.2,0.831]
[1680521283616,3.2078,1804.5,1804.2,0.831]
[1680521286315,3.2078,1804.5,1804.2,1.831]
[1680521287521,0.825,1804.6,1804.2,1.831]
[1680521288027,0.40246475,1804.5,1804.2,1.831]
[1680521292418,0.40246475,1804.5,1804.3,3.2078]
[1680521292618,0.40246475,1804.5,1804.4,1.0]
[1680521293015,0.40246475,1804.5,1804.3,4.2078]
[1680521293225,0.40246475,1804.5,1804.4,1.0]
[1680521294126,0.40246475,1804.5,1804.3,4.2078]
[1680521299125,0.40246475,1804.5,1804.3,3.2078]
[1680521299524,0.40246475,1804.5,1804.4,1.831]
[1680521299829,3.76192916,1804.7,1804.4,1.831]
[1680521303032,0.33235149,1804.6,1804.4,1.831]
[1680521303423,3.76192916,1804.7,1804.4,0.831]
[1680521303821,3.76192916,1804.7,1804.4,1.831]
[1680521304326,0.55412916,1804.7,1804.4,1.831]
[1680521304523,3.2078,1804.7,1804.4,1.831]
[1680521305028,3.02870034,1804.8,1804.4,1.831]
[1680521305222,3.2078,1804.7,1804.4,1.831]
[1680521305429,3.2078,1804.7,1804.4,0.831]
[1680521305628,3.2078,1804.7,1804.4,1.831]
[1680521306531,3.2078,1804.7,1804.4,0.831]
[1680521306732,3.2078,1804.7,1804.4,1.831]
[1680521307527,3.2078,1804.7,1804.4,0.831]
[1680521310133,3.02870034,1804.8,1804.4,0.831]
[1680521310338,3.2078,1804.7,1804.4,1.831]
[1680521310635,3.02870034,1804.8,1804.4,1.831]
[1680521310831,6.23650034,1804.8,1804.4,1.831]
[1680521311736,6.23650034,1804.8,1804.4,0.831]
[1680521312129,6.23650034,1804.8,1804.3,4.0358]
[1680521312329,6.23650034,1804.8,1804.4,1.0]
[1680521313236,6.23650034,1804.8,1804.3,5.0358]
[1680521315446,6.81360346,1804.8,1804.3,5.0358]
[1680521317050,3.2078,1804.6,1804.3,5.0358]
[1680521317649,3.2078,1804.6,1804.3,5.90608651]
[1680521318255,0.40454701,1804.5,1804.3,4.90608651]
[1680521318455,0.40454701,1804.5,1804.4,1.41070183]
[1680521318657,0.40454701,1804.5,1804.4,2.41070183]
[1680521319549,3.60980346,1804.8,1804.4,2.41070183]
[1680521319752,0.57710312,1804.7,1804.5,0.57970183]
[1680521320952,4.47590873,1804.8,1804.5,0.57970183]
[1680521321353,0.57710312,1804.7,1804.5,0.57970183]
[1680521321860,0.57710312,1804.7,1804.5,1.44998834]
[1680521322059,0.57710312,1804.7,1804.5,0.57970183]
[1680521322455,0.57710312,1804.7,1804.5,1.44998834]
[1680521322656,0.57710312,1804.7,1804.6,0.57970183]
[1680521323657,0.86610527,1804.7,1804.6,0.87028651]
[1680521323950,0.86610527,1804.7,1804.6,1.87028651]
[1680521324152,0.86610527,1804.7,1804.6,0.87028651]
[1680521330571,0.86610527,1804.7,1804.6,0.87189253]
[1680521330764,1.44409217,1804.7,1804.6,1.0]
[1680521330963,0.5779869,1804.7,1804.6,2.15997045]
[1680521331267,1.44409217,1804.7,1804.6,1.0]
[1680521331474,0.5779869,1804.7,1804.6,1.0]
[1680521331672,0.5779869,1804.7,1804.6,2.15997045]
[1680521332269,0.5779869,1804.7,1804.6,2.98997045]
[1680521332870,0.90577221,1804.7,1804.6,2.98997045]
[1680521333170,0.5779869,1804.7,1804.6,2.98997045]
[1680521333366,0.5779869,1804.7,1804.6,1.98997045]
[1680521333571,0.90576928,1804.7,1804.6,1.98997045]
[1680521333768,0.90576928,1804.7,1804.6,0.83]
[1680521334065,0.90576928,1804.7,1804.6,1.98997045]
[1680521334663,0.5779869,1804.7,1804.6,1.98997045]
[1680521335065,0.90576384,1804.7,1804.6,1.98997045]
[1680521335370,0.5779869,1804.7,1804.6,1.98997045]
[1680521335972,0.90576114,1804.7,1804.6,1.98997045]
[1680521336770,0.5779869,1804.7,1804.6,1.98997045]
[1680521337169,0.90575672,1804.7,1804.6,1.98997045]
[1680521337470,0.5779869,1804.7,1804.6,1.98997045]
[1680521337864,0.90575384,1804.7,1804.6,1.98997045]
[1680521338366,0.5779869,1804.7,1804.6,1.98997045]
[1680521338774,0.90575033,1804.7,1804.6,1.98997045]
[1680521339374,0.5779869,1804.7,1804.6,1.98997045]
[1680521339569,0.75127933,1804.7,1804.6,1.98997045]
[1680521340273,0.5779869,1804.7,1804.6,0.83]
[1680521340583,0.7512755,1804.7,1804.6,1.98997045]
[1680521341168,0.5779869,1804.7,1804.6,1.98997045]
[1680521341667,0.7512718,1804.7,1804.6,1.98997045]
[1680521341968,0.1732849,1804.7,1804.6,1.98997045]
[1680521342370,0.7512718,1804.7,1804.6,1.98997045]
[1680521342571,0.1732849,1804.7,1804.6,1.98997045]
[1680521343072,0.7512718,1804.7,1804.6,1.98997045]
[1680521343472,0.5779869,1804.7,1804.6,1.98997045]
[1680521344265,3.64779251,1804.8,1804.6,1.98997045]
[1680521344471,0.17327497,1804.7,1804.6,1.98997045]
[1680521346173,0.16682107,1804.7,1804.6,1.98997045]
[1680521349078,3.08718908,1804.8,1804.6,1.98997045]
[1680521349275,2.22108381,1804.8,1804.7,4.07922814]
[1680521349677,3.08718908,1804.8,1804.7,4.07922814]
[1680521352278,2.22108381,1804.8,1804.7,4.07922814]
[1680521352679,2.78291593,1804.8,1804.7,4.07922814]
[1680521357188,3.6490212,1804.8,1804.7,4.07922814]
[1680521357487,2.78291593,1804.8,1804.7,4.07922814]
[1680521359891,3.6490212,1804.8,1804.7,4.07922814]
[1680521360290,4.18980896,1804.8,1804.6,1.452478]
[1680521360492,5.89862002,1804.7,1804.6,0.58104986]
[1680521360888,2.69082002,1804.7,1804.6,0.58104986]
[1680521361688,2.69082002,1804.7,1804.6,1.452478]
[1680521361889,2.69082002,1804.7,1804.6,0.58104986]
[1680521362584,2.69082002,1804.7,1804.6,1.452478]
[1680521362785,2.69082002,1804.7,1804.6,0.58104986]